bitfinex/quotes_ETHUSD_20240820
["timestamp","ask_amount","ask_price","bid_price","bid_amount"]
[1724165032477,5.316,2602.5,2601.9,0.768691]
[1724165032958,9.15847,2602.5,2601.9,0.768691]
[1724165033181,9.15847,2602.5,2601.5,2.4747]
[1724165033182,5.316,2602.5,2601.5,2.4747]
[1724165033332,3.84299,2602.2,2601.5,2.4747]
[1724165033956,3.84307,2602.1,2601.5,2.4747]
[1724165034265,9.15914,2602.1,2601.5,2.4747]
[1724165034837,3.8432,2602.0,2601.5,2.4747]
[1724165035667,9.15913,2602.1,2601.5,2.4747]
[1724165035833,9.15915,2602.1,2601.5,2.4747]
[1724165036037,3.84344,2601.9,2601.3,0.13]
[1724165036239,7.6869,2601.9,2601.3,0.13]
[1724165036767,3.84386,2601.6,2601.3,0.13]
[1724165037135,9.15966,2601.7,2601.3,0.13]
[1724165037637,5.316,2601.7,2601.3,0.13]
[1724165037838,3.84344,2601.9,2601.3,0.13]
[1724165038168,5.316,2602.1,2601.6,3.84377]
[1724165038354,5.316,2602.1,2601.6,7.68747]
[1724165038560,5.316,2602.1,2601.6,3.8437]
[1724165038970,5.316,2602.1,2601.5,3.8439]
[1724165039164,5.316,2602.1,2601.4,10.16325]
[1724165039326,5.316,2602.1,2601.5,1.1325113]
[1724165039967,5.316,2602.1,2601.5,4.9763713]
[1724165040463,3.84322,2602.0,2601.5,1.1325113]
[1724165040681,7.6549,2602.1,2601.3,0.13]
[1724165040824,3.84401,2601.5,2601.3,0.13]
[1724165041514,3.84379,2601.6,2601.3,0.13]
[1724165041674,2.4983,2602.7,2601.4,2.4785]
[1724165041859,3.84292,2602.2,2601.5,4.10471]
[1724165042059,0.634036,2602.6,2601.5,4.10471]
[1724165042060,3.84262,2602.4,2601.5,4.10471]
[1724165042227,3.84247,2602.5,2601.7,3.84356]
[1724165042427,3.84247,2602.5,2601.7,3.84355]
[1724165042667,3.84244,2602.6,2601.8,3.84341]
[1724165042884,5.316,2602.7,2602.0,3.84318]
[1724165043082,5.316,2602.7,2602.2,3.84288]
[1724165043372,5.316,2602.7,2602.2,3.84282]
[1724165043524,3.84187,2602.9,2602.2,3.84282]
[1724165043926,3.84187,2602.9,2602.1,2.4531]
[1724165044378,3.84224,2602.7,2602.1,3.082719]
[1724165044523,5.316,2602.8,2602.1,3.082719]
[1724165044723,3.84166,2603.1,2602.2,3.84289]
[1724165044925,3.84105,2603.5,2602.6,3.84231]
[1724165045175,0.04216678,2603.0,2602.5,2.2858]
[1724165045408,5.316,2603.3,2602.5,6.35683]
[1724165045409,0.04207041,2602.9,2602.5,6.35683]
[1724165045611,9.15634,2604.0,2602.8,2.2858]
[1724165045798,3.84039,2603.9,2603.1,3.84148]
[1724165045978,9.15634,2604.0,2602.9,3.84177]
[1724165045979,7.68123,2603.8,2602.9,3.84177]
[1724165046196,5.316,2603.6,2602.9,3.84177]
[1724165046531,3.84115,2603.4,2602.8,2.2858]
[1724165046719,9.68845,2603.6,2602.8,2.2858]
[1724165047068,3.84103,2603.5,2602.8,2.2858]
[1724165047270,9.68845,2603.6,2602.8,2.2858]
[1724165047519,9.15632,2604.0,2602.8,2.2858]
[1724165047675,4.24788468,2603.9,2603.0,3.84159]
[1724165047874,9.15684,2603.6,2602.8,2.2858]
[1724165048467,5.316,2603.6,2602.9,0.07683625]
[1724165048671,5.316,2604.0,2602.9,4.07807363]
[1724165048916,5.316,2604.0,2602.9,0.23626363]
[1724165048917,3.84086,2603.6,2602.9,0.23626363]
[1724165049149,3.40744104,2603.9,2602.9,3.84183]
[1724165049150,6.84044,2603.9,2602.9,3.84183]
[1724165049349,0.40743814,2603.8,2602.9,3.84183]
[1724165049504,3.0,2603.9,2603.1,3.84148]
[1724165050850,7.24597766,2604.4,2603.5,3.97098]
[1724165050851,15.25025,2604.4,2603.5,3.97098]
[1724165051152,5.316,2604.0,2603.5,0.13]
[1724165051935,9.15629,2604.0,2603.5,0.13]
[1724165052356,3.84039,2603.9,2603.5,0.13]
[1724165052519,9.15629,2604.0,2603.5,0.13]
[1724165052884,12.99766,2603.6,2603.5,0.13]
[1724165053019,6.84083,2603.6,2603.5,0.13]
[1724165053205,3.0,2603.6,2603.5,0.13]
[1724165053407,8.316,2603.9,2603.5,0.13]
[1724165053625,5.316,2603.9,2603.5,0.13]
[1724165054315,3.0,2604.2,2603.5,4.998897]
[1724165054509,3.0,2604.1,2603.5,3.97097]
[1724165054749,10.680915,2604.3,2603.5,7.81185]
[1724165054960,5.316,2604.3,2603.7,3.84061]
[1724165055152,3.83944,2604.6,2603.9,3.84037]
[1724165055466,3.83943,2604.6,2603.8,3.84054]
[1724165055629,3.83961,2604.5,2603.7,3.97059]
[1724165055950,3.83943,2604.6,2603.7,3.97059]
[1724165056119,3.83974,2604.4,2603.7,3.97059]
[1724165056325,3.84033,2604.0,2603.7,0.13]
[1724165056546,5.316,2604.3,2603.7,0.13]
[1724165056547,7.68012,2604.2,2603.7,0.13]
[1724165056770,3.84003,2604.2,2603.7,0.13]
[1724165056924,3.84025,2604.0,2603.7,0.13]
[1724165057239,3.84003,2604.2,2603.7,0.13]
[1724165057445,3.0,2604.1,2603.7,0.13]
[1724165057656,7.68108,2603.8,2603.7,0.13]
[1724165058249,10.68108,2603.8,2603.7,0.13]
[1724165059108,3.0,2603.8,2603.7,0.13]
[1724165059368,6.84054,2603.8,2603.7,0.13]
[1724165060263,3.0,2603.8,2603.7,0.13]
[1724165061061,6.84011,2604.1,2603.7,0.13]
[1724165061216,3.84026,2604.0,2603.7,0.13]
[1724165061412,3.0,2604.2,2603.7,0.13]
[1724165061629,3.84026,2604.0,2603.7,0.13]
[1724165061959,3.8401,2604.1,2603.7,0.13]
[1724165062132,3.0,2604.0,2603.7,0.13]
[1724165062458,12.99579,2604.3,2603.7,0.13]
[1724165062660,9.15589,2604.3,2603.7,0.13]
[1724165062967,3.83989,2604.3,2603.7,0.757185]
[1724165063459,3.83954,2604.5,2603.7,4.597785]
[1724165063760,3.83954,2604.5,2603.7,0.757185]
[1724165063969,3.83954,2604.5,2603.7,4.597855]
[1724165064178,3.83954,2604.5,2603.8,1.0739505]
[1724165064453,3.83929,2604.7,2603.9,3.84029]
[1724165064659,7.67858,2604.7,2604.0,2.3032]
[1724165064824,3.83932,2604.7,2604.0,2.3032]
[1724165065024,3.8394,2604.6,2604.0,3.02496105]
[1724165065432,3.0,2604.5,2604.0,3.02496105]
[1724165066155,5.316,2604.8,2604.0,6.99512105]
[1724165066365,5.316,2604.8,2604.2,3.8398]
[1724165066545,3.83858,2605.2,2604.3,2.77275909]
[1724165066546,3.8388,2605.0,2604.3,2.77275909]
[1724165066714,3.8388,2605.0,2604.3,6.61247909]
[1724165067057,9.15458,2605.2,2604.4,3.83957]
[1724165067263,5.316,2605.2,2604.5,3.83942]
[1724165067429,9.15448,2605.2,2604.6,2.3955]
[1724165067764,9.15448,2605.2,2604.6,3.018992]
[1724165068056,3.83862,2605.1,2604.6,2.3955]
[1724165068717,5.316,2605.2,2604.6,2.3955]
[1724165069269,6.83811,2605.5,2604.7,3.83912]
[1724165069758,5.316,2605.2,2604.6,2.5255]
[1724165070061,9.15457,2605.2,2604.6,2.5255]
[1724165070229,3.0,2605.5,2604.7,3.83909]
[1724165070428,12.99194,2605.6,2604.9,3.8389]
[1724165070630,6.83807,2605.5,2604.8,3.83905]
[1724165071372,6.83807,2605.5,2604.7,3.83907]
[1724165071373,3.0,2605.5,2605.0,2.302]
[1724165072107,5.316,2605.6,2605.0,6.14076]
[1724165072305,5.316,2605.6,2605.1,0.99796]
[1724165073303,9.15389,2605.6,2605.1,0.99796]
[1724165073969,3.0,2605.9,2604.6,3.247098]
[1724165073970,3.83879,2605.0,2604.6,3.247098]
[1724165074169,3.83879,2605.0,2604.6,2.6106]
[1724165074369,5.316,2605.2,2604.6,2.6106]
[1724165074593,9.15448,2605.2,2604.6,2.6106]
[1724165074955,5.316,2605.2,2604.6,2.6106]
[1724165075194,9.15448,2605.2,2604.7,0.645008]
[1724165075776,9.15448,2605.2,2604.6,2.6106]
[1724165075977,3.83863,2605.1,2604.6,2.6106]
[1724165076295,3.83863,2605.1,2604.6,0.13]
[1724165076601,9.15448,2605.2,2604.6,0.13]
[1724165076974,5.316,2605.2,2604.6,0.13]
[1724165077169,5.316,2605.2,2604.6,0.910907]
[1724165077578,5.316,2605.2,2604.6,4.750187]
[1724165077775,5.316,2605.2,2604.7,2.4003]
[1724165077980,6.83803,2605.5,2604.7,2.4003]
[1724165078188,3.0,2605.5,2604.8,0.3311207]
[1724165078391,9.15454,2605.2,2604.7,2.4003]
[1724165078593,3.83884,2605.0,2604.6,0.13]
[1724165079288,9.15514,2604.8,2604.6,0.13]
[1724165079490,3.83921,2604.7,2604.6,0.13]
[1724165079691,9.15514,2604.8,2604.6,0.13]
[1724165080117,7.67842,2604.7,2604.6,0.13]
[1724165080279,15.98642,2604.7,2604.6,0.13]
[1724165080680,19.82563,2604.7,2604.6,0.13]
[1724165081183,15.98642,2604.7,2604.6,0.13]
[1724165082890,19.82563,2604.7,2604.6,0.13]
[1724165083098,18.4656344,2604.7,2604.6,0.13]
[1724165083298,22.3048444,2604.7,2604.6,0.13]
[1724165084019,5.308,2603.7,2603.1,2.2739]
[1724165084347,3.84031,2604.0,2603.1,6.11533]
[1724165084707,3.0,2603.9,2603.1,6.11533]
[1724165084919,3.0,2603.9,2603.5,3.84095]
[1724165085255,3.0,2604.2,2603.6,2.2739]
[1724165085387,3.0,2604.2,2603.6,6.11465]
[1724165085590,9.14778,2604.4,2603.6,6.11465]
[1724165085591,12.14778,2604.4,2603.6,6.11465]
[1724165085792,12.14778,2604.4,2603.6,7.110203]
[1724165086637,8.308,2604.4,2603.7,3.84058]
[1724165086953,8.308,2604.4,2603.7,3.84068]
[1724165087151,5.308,2604.4,2603.7,3.84054]
[1724165087353,5.308,2604.4,2603.8,0.7109993]
[1724165088020,3.83996,2604.2,2603.6,2.2739]
[1724165088220,3.83985,2604.3,2603.6,2.2739]
[1724165088552,3.8398,2604.3,2603.6,2.2739]
[1724165088750,3.83982,2604.3,2603.6,2.2739]
[1724165089365,3.83982,2604.3,2603.6,2.885388]
[1724165090219,9.14774,2604.4,2603.6,6.726218]
[1724165090434,12.9875,2604.4,2603.6,6.726218]
[1724165091152,9.14774,2604.4,2603.6,6.726218]
[1724165091451,5.308,2604.4,2603.8,3.84046]
[1724165091614,5.308,2604.4,2603.9,4.224366]
[1724165091811,5.308,2604.4,2603.9,0.384046]
[1724165092033,5.308,2604.4,2603.8,3.84046]
[1724165092550,3.981,2604.3,2603.6,6.726148]
[1724165092861,6.981,2604.6,2603.7,2.51320893]
[1724165093150,3.981,2604.6,2604.1,3.84001]
[1724165093473,3.83908,2604.8,2603.9,6.27668]
[1724165093474,3.981,2604.3,2603.9,6.27668]
[1724165093639,3.981,2604.3,2603.9,2.4364]
[1724165093947,3.981,2604.3,2603.9,6.27679]
[1724165094152,3.981,2604.3,2603.9,7.288525]
[1724165094353,3.981,2604.6,2604.0,3.84023]
[1724165094604,3.981,2604.6,2603.9,7.288525]
[1724165094605,3.981,2604.6,2604.3,3.83979]
[1724165094746,3.981,2604.9,2604.4,6.20327]
[1724165094941,3.981,2604.9,2604.4,2.3637]
[1724165095397,3.981,2604.9,2604.4,3.368012]
[1724165095577,3.981,2604.9,2604.4,2.3637]
[1724165095890,7.81993,2604.9,2604.4,2.3637]
[1724165096114,3.981,2604.9,2604.4,6.20334]
[1724165096295,3.981,2604.9,2604.4,2.3637]
[1724165096787,3.981,2604.6,2604.4,2.3637]
[1724165096988,3.981,2604.6,2604.0,2.3443]
[1724165096989,8.21848,2604.6,2604.0,2.3443]
[1724165097194,7.82038,2604.6,2604.0,2.3443]
[1724165097503,3.83957,2604.5,2604.0,2.3443]
[1724165097703,3.981,2604.3,2604.0,2.3443]
[1724165098499,7.82084,2604.3,2603.7,2.3777]
[1724165098678,3.83997,2604.2,2603.7,2.3777]
[1724165099007,3.981,2604.0,2603.7,2.3777]
[1724165099295,3.981,2604.3,2603.7,2.3777]
[1724165099462,3.981,2604.3,2603.7,6.21838]
[1724165099806,3.981,2604.3,2603.7,2.3777]
[1724165100591,3.981,2604.6,2603.6,3.8407]
[1724165100887,3.981,2604.6,2603.2,0.611533]
[1724165100888,3.981,2604.6,2604.3,2.3481]
[1724165101706,3.83957,2604.5,2603.9,2.3481]
[1724165102024,3.83982,2604.3,2603.9,2.3481]
[1724165102195,4.99095766,2604.6,2603.5,2.3481]
[1724165102399,3.83997,2604.2,2603.5,2.3481]
[1724165102593,3.83997,2604.2,2603.5,6.18906]
[1724165102891,3.83997,2604.2,2603.5,7.192088]
[1724165103295,7.68003,2604.2,2603.5,3.351108]
[1724165103494,7.68003,2604.2,2603.5,2.3481]
[1724165103495,3.981,2604.0,2603.5,2.3481]
[1724165103900,3.84046,2603.9,2603.5,2.3481]
[1724165104129,3.981,2604.0,2603.5,2.3481]
[1724165104488,3.981,2603.7,2603.1,2.4757]
[1724165104827,3.981,2603.7,2603.2,3.84139]
[1724165105035,6.981,2604.3,2603.2,2.3427]
[1724165105241,1.15149766,2604.4,2603.7,2.3427]
[1724165105242,7.82072,2604.4,2603.7,2.3427]
[1724165105417,3.83989,2604.3,2603.7,2.3427]
[1724165105733,3.83989,2604.3,2603.4,2.3519]
[1724165105734,3.84026,2604.0,2603.4,2.3519]
[1724165105942,3.981,2604.1,2603.4,2.3519]
[1724165106228,7.82164,2603.8,2603.4,2.3519]
[1724165106742,3.981,2603.8,2603.4,2.3519]
[1724165106957,3.981,2604.1,2603.4,2.3519]
[1724165107104,3.84031,2604.0,2603.4,2.3519]
[1724165107304,3.981,2603.8,2603.4,2.3519]
[1724165108841,3.981,2604.4,2603.6,3.84076]
[1724165109051,3.981,2604.4,2603.8,3.84051]
[1724165109197,3.981,2604.4,2603.7,2.2913]
[1724165109396,7.82069,2604.4,2603.7,2.2913]
[1724165109594,3.84005,2604.2,2603.7,2.2913]
[1724165109814,3.84025,2604.0,2603.7,2.2913]
[1724165110044,3.981,2604.0,2603.7,2.2913]
[1724165111238,3.981,2604.3,2603.7,2.2913]
[1724165111438,3.981,2604.3,2603.7,6.13187]
[1724165111615,1.892,2604.4,2603.7,2.2913]
[1724165111935,1.892,2604.4,2603.9,3.84024]
[1724165112548,1.892,2604.4,2604.1,3.84002]
[1724165112837,1.892,2604.4,2604.0,6.33014]
[1724165113041,1.892,2604.4,2604.0,2.4899]
[1724165113230,3.981,2604.3,2604.0,2.4899]
[1724165113411,9.176069,2604.3,2603.7,2.335]
[1724165113608,5.336219,2604.3,2603.7,2.335]
[1724165114200,3.981,2604.3,2603.7,2.335]
[1724165114403,3.981,2604.3,2603.8,7.68091]
[1724165114619,3.981,2604.3,2603.8,3.84045]
[1724165115123,1.892,2604.4,2604.0,3.84023]
[1724165115438,1.892,2604.4,2603.7,2.335]
[1724165115654,1.892,2604.4,2604.2,2.3539]
[1724165115810,1.892,2604.4,2604.3,3.8398]
[1724165116197,1.892,2604.4,2604.2,2.3539]
[1724165116393,1.892,2604.4,2603.7,2.3539]
[1724165116394,3.981,2604.3,2603.7,2.3539]
[1724165116696,3.981,2604.3,2603.8,3.84046]
[1724165116899,1.892,2604.4,2603.9,3.84038]
[1724165117112,1.892,2604.4,2604.0,7.68041]
[1724165117311,1.892,2604.4,2604.1,3.84009]
[1724165117553,1.892,2604.4,2604.0,3.84023]
[1724165118643,1.892,2604.4,2603.9,3.84038]
[1724165118825,1.892,2604.4,2604.0,7.68046]
[1724165119031,1.892,2604.4,2604.1,2.4557]
[1724165119350,1.892,2604.4,2604.1,6.29577]
[1724165119714,1.892,2604.4,2604.1,2.4557]
[1724165121691,1.892,2604.4,2603.7,6.25076]
[1724165121692,3.981,2604.3,2603.7,6.25076]
[1724165121831,3.981,2604.3,2603.7,6.25071]
[1724165122048,3.981,2604.3,2603.7,6.875781]
[1724165122960,3.981,2604.3,2603.3,3.84118]
[1724165123151,3.83996,2604.2,2603.5,3.84088]
[1724165123473,3.84039,2603.9,2603.4,2.4595]
[1724165123779,3.84091,2603.6,2602.5,0.06688755]
[1724165123941,3.981,2603.2,2602.7,3.84214]
[1724165124128,3.981,2603.2,2602.8,3.842]
[1724165124328,3.981,2603.2,2602.7,3.84214]
[1724165124551,3.981,2603.7,2602.9,7.68365]
[1724165124552,7.82177,2603.7,2602.9,7.68365]
[1724165124750,7.82177,2603.7,2602.9,3.84177]
[1724165124993,3.84126,2603.4,2602.6,6.2447]
[1724165125198,7.82169,2603.7,2603.0,3.84162]
[1724165125695,4.24876438,2603.6,2602.8,7.68379]
[1724165125845,7.82169,2603.7,2602.9,3.84183]
[1724165126473,7.82176,2603.7,2603.0,3.8417]
[1724165126690,3.84084,2603.6,2602.8,3.84187]
[1724165126905,3.84017,2604.1,2602.9,3.376134]
[1724165127085,7.82109,2604.2,2603.4,3.84105]
[1724165127417,9.5772945,2604.2,2603.5,3.84097]
[1724165127709,1.892,2604.4,2603.6,3.84083]
[1724165128047,5.73166,2604.4,2603.6,7.68158]
[1724165128249,5.73166,2604.4,2603.6,3.84075]
[1724165128680,5.73166,2604.4,2603.6,7.68151]
[1724165128864,1.892,2604.4,2603.6,3.84074]
[1724165129170,1.892,2604.4,2603.6,4.224814]
[1724165129364,1.892,2604.4,2603.6,8.065564]
[1724165129565,1.892,2604.4,2603.6,0.384074]
[1724165129566,3.981,2604.2,2603.6,0.384074]
[1724165129766,3.981,2604.2,2603.5,3.84097]
[1724165130199,7.82095,2604.2,2603.4,3.84104]
[1724165130402,7.82095,2604.2,2603.4,7.68208]
[1724165130613,3.981,2604.2,2603.4,3.84104]
[1724165130760,3.981,2604.2,2603.5,0.384104]
[1724165130958,3.981,2603.6,2603.0,3.84157]
[1724165132994,3.981,2603.6,2603.1,3.84142]
[1724165133179,3.981,2603.6,2603.0,3.84157]
[1724165133398,3.981,2603.3,2602.5,2.4733]
[1724165133597,2.2811,2603.5,2602.4,3.84257]
[1724165133598,3.981,2603.0,2602.4,3.84257]
[1724165133796,3.981,2603.0,2602.2,6.3161]
[1724165134126,3.981,2603.0,2602.2,10.79051]
[1724165134285,7.82272,2603.0,2602.2,6.94771]
[1724165134981,3.981,2603.0,2602.2,10.79053]
[1724165135484,7.82272,2603.0,2602.2,10.79052]
[1724165135693,7.82272,2603.0,2602.2,6.94771]
[1724165135917,8.989157,2603.0,2602.2,10.79052]
[1724165136104,5.147437,2603.0,2602.2,10.79052]
[1724165136303,8.989157,2603.0,2602.2,6.94771]
[1724165136621,10.322157,2603.0,2602.2,6.94771]
[1724165136818,10.322157,2603.0,2602.2,6.3161]
[1724165137043,6.480437,2603.0,2602.2,6.31609]
[1724165137341,6.480437,2603.0,2602.3,3.84274]
[1724165137500,1.53785501,2603.7,2602.6,2.266]
[1724165137701,2.4039,2603.8,2603.1,3.84153]
[1724165137931,2.4039,2603.8,2602.9,7.68352]
[1724165138140,2.4039,2603.8,2602.9,3.84174]
[1724165138141,4.99654,2603.7,2602.9,3.84174]
[1724165138301,9.155,2603.5,2602.7,3.84207]
[1724165138503,9.155,2603.5,2602.7,7.68414]
[1724165138836,9.155,2603.5,2602.7,3.84207]
[1724165139187,5.314,2603.5,2602.7,3.84205]
[1724165139489,6.345061,2603.5,2602.7,3.84205]
[1724165139714,6.345061,2603.5,2602.9,3.84184]
[1724165140050,2.4039,2603.8,2603.1,3.84149]
[1724165140190,6.24452,2603.8,2603.0,3.84171]
[1724165140391,3.8407,2603.7,2603.0,3.84171]
[1724165140720,5.314,2603.5,2602.7,3.84205]
[1724165140887,9.15507,2603.5,2602.7,3.84205]
[1724165141089,9.15507,2603.5,2602.8,3.842]
[1724165141737,7.6824,2603.4,2602.6,6.1082]
[1724165141892,3.8413,2603.3,2602.6,6.1082]
[1724165142084,3.8413,2603.3,2602.2,5.4203]
[1724165142085,3.84149,2603.2,2602.2,5.4203]
[1724165142403,3.84149,2603.2,2602.4,3.84252]
[1724165142621,5.314,2603.1,2602.3,3.84271]
[1724165142795,9.15559,2603.1,2602.4,3.84252]
[1724165143211,3.84174,2603.0,2602.3,3.84273]
[1724165143429,1.299723,2603.0,2602.3,7.6854]
[1724165143690,1.299723,2603.0,2602.5,3.84245]
[1724165143809,5.314,2603.1,2602.5,3.84245]
[1724165144256,5.314,2603.1,2602.6,3.84219]
[1724165144444,5.314,2603.1,2602.5,3.84235]
[1724165144445,5.314,2603.1,2602.7,3.84207]
[1724165144650,5.314,2603.1,2602.5,3.84237]
[1724165144827,8.93846,2603.6,2602.2,2.4203]
[1724165145164,2.3219,2603.7,2602.8,6.32062]
[1724165145311,3.8409,2603.6,2602.9,3.84185]
[1724165145716,3.8409,2603.6,2602.8,6.32062]
[1724165146021,5.314,2603.5,2602.8,6.32062]
[1724165146234,7.68245,2603.4,2602.6,3.84221]
[1724165146516,5.140865,2603.4,2602.6,3.84221]
[1724165146955,5.140865,2603.4,2602.4,7.68501]
[1724165146956,3.84145,2603.2,2602.4,7.68501]
[1724165147330,3.84145,2603.2,2602.4,3.84249]
[1724165147528,5.140865,2603.4,2602.5,3.84235]
[1724165147732,4.8867765,2603.3,2602.4,3.84249]
[1724165148045,3.84129,2603.3,2602.4,3.84249]
[1724165148352,3.84129,2603.3,2602.5,3.84233]
[1724165148564,5.314,2603.5,2602.2,6.19471]
[1724165148565,11.50123,2603.1,2602.2,6.19471]
[1724165148751,3.84194,2602.9,2602.2,6.19471]
[1724165149265,3.84194,2602.9,2602.2,2.3519]
[1724165149567,3.84211,2602.8,2602.0,3.84309]
[1724165149713,3.84194,2602.9,2602.0,3.84309]
[1724165149915,1.150123,2603.0,2602.1,3.84297]
[1724165150147,0.8809723,2602.9,2602.1,3.84297]
[1724165150335,3.84216,2602.7,2602.0,3.84309]
[1724165150890,3.84253,2602.5,2601.6,6.2745]
[1724165151033,5.314,2602.3,2601.6,6.90195]
[1724165151239,9.15678,2602.3,2601.6,6.90195]
[1724165151432,5.314,2602.3,2601.7,3.84354]
[1724165151817,5.314,2602.3,2601.6,3.05825]
[1724165152067,9.15676,2602.3,2601.6,6.90195]
[1724165152218,5.314,2602.3,2601.8,3.84348]
[1724165152562,5.314,2602.3,2601.7,0.690195]
[1724165152872,5.314,2602.3,2601.7,4.533815]
[1724165153759,9.15683,2602.3,2601.7,0.690195]
[1724165153960,9.15683,2602.3,2601.5,3.8439]
[1724165154321,3.84291,2602.2,2601.5,3.8439]
[1724165154846,3.84356,2601.8,2601.1,0.06692788]
[1724165155053,5.314,2601.9,2601.2,3.84426]
[1724165155054,7.5789,2601.9,2601.2,3.84426]
[1724165155233,7.5789,2601.9,2601.1,3.8444]
[1724165155234,7.5789,2601.9,2601.3,4.613066]
[1724165155756,5.314,2601.9,2601.3,4.613066]
[1724165156264,2.2649,2602.2,2601.3,0.768866]
[1724165156423,3.0,2602.3,2601.5,3.84383]
[1724165156823,3.84297,2602.2,2601.5,3.84383]
[1724165157058,3.0,2602.1,2601.5,3.84383]
[1724165157558,3.988,2602.0,2601.5,3.84383]
[1724165157773,2.3918,2602.5,2601.7,3.84351]
[1724165157918,2.3918,2602.5,2601.8,3.84347]
[1724165158488,3.84263,2602.4,2601.7,3.84351]
[1724165158702,3.988,2602.2,2601.7,3.84351]
[1724165158857,3.988,2601.9,2601.5,0.768794]
[1724165159057,3.988,2601.9,2601.3,6.33618]
[1724165159687,3.988,2601.9,2601.3,10.18033]
[1724165159999,3.988,2601.9,2601.3,6.33618]
[1724165160491,3.84351,2601.8,2601.1,3.84452]
[1724165160698,6.282,2601.9,2601.1,3.84452]
[1724165161001,3.84349,2601.8,2601.2,0.633662]
[1724165161196,3.84349,2601.8,2601.1,3.84442]
[1724165161364,3.988,2601.6,2601.0,6.33676]
[1724165162265,3.988,2601.6,2601.0,2.4921]
[1724165162427,3.988,2601.6,2600.7,0.06694423]
[1724165162428,7.83233,2601.3,2600.5,3.84526]
[1724165162715,3.0,2601.9,2600.5,3.84526]
[1724165162716,3.988,2601.0,2600.7,3.84511]
[1724165162925,3.988,2601.3,2600.7,3.84511]
[1724165163272,3.988,2601.3,2600.8,3.84491]
[1724165163586,3.988,2601.3,2600.6,3.84514]
[1724165163786,3.84396,2601.5,2600.3,2.3129]
[1724165163787,7.8327,2601.0,2600.3,2.3129]
[1724165163987,7.8327,2601.0,2600.3,3.00976395]
[1724165163988,3.988,2601.0,2600.3,3.00976395]
[1724165164192,3.988,2601.0,2600.3,6.85545395]
[1724165164753,3.988,2601.0,2600.0,0.00432641]
[1724165164754,3.988,2600.7,2600.0,0.00432641]
[1724165164934,3.988,2600.4,2600.0,3.84613]
[1724165165078,3.988,2600.4,2599.9,3.84621]
[1724165165635,3.988,2600.7,2600.0,3.84607]
[1724165165778,3.988,2600.7,2600.1,3.84589]
[1724165166131,3.988,2600.7,2599.9,0.23993]
[1724165166132,1.892,2600.7,2600.6,6.27626]
[1724165166428,1.892,2600.7,2600.6,13.96678]
[1724165166574,1.892,2600.7,2600.6,15.747996]
[1724165166778,1.892,2600.7,2600.6,18.747996]
[1724165167003,1.892,2600.7,2600.6,23.143256]
[1724165167004,0.61104057,2600.7,2600.6,23.143256]
[1724165167219,2.3259,2602.4,2601.8,3.84345]
[1724165167604,2.3259,2602.4,2601.6,2.3322]
[1724165167816,3.8432,2602.0,2601.2,6.32468]
[1724165168109,3.84334,2601.9,2601.2,6.32468]
[1724165168307,5.319,2601.8,2601.1,3.84446]
[1724165168523,5.319,2601.8,2601.0,3.84459]
[1724165168824,5.319,2601.8,2601.2,3.84436]
[1724165168989,5.319,2601.8,2601.0,4.85489]
[1724165169196,14.63708,2602.2,2601.0,1.01034]
[1724165169401,14.63708,2602.2,2601.4,3.84406]
[1724165169732,3.84319,2602.0,2601.2,3.84434]
[1724165170021,1.848027,2602.0,2601.3,3.8442]
[1724165170203,14.63708,2602.2,2601.4,3.84407]
[1724165170532,4.60715,2602.4,2601.6,3.8437]
[1724165170533,0.76449,2602.4,2601.6,3.8437]
[1724165170679,3.0,2602.3,2601.6,3.8437]
[1724165170873,3.0,2602.3,2601.5,2.4316]
[1724165170874,6.84277,2602.3,2601.5,2.4316]
[1724165171127,5.319,2602.2,2601.2,10.12021]
[1724165171429,3.84319,2602.0,2601.3,1.067021]
[1724165171728,3.84319,2602.0,2601.1,0.55]
[1724165171729,2.425,2602.0,2601.0,4.85494]
[1724165171891,3.0,2601.9,2601.0,4.85494]
[1724165172077,2.425,2602.0,2601.0,4.85494]
[1724165172078,3.84368,2601.7,2601.0,1.01034]
[1724165172292,2.425,2602.0,2600.4,3.8455]
[1724165172293,2.425,2602.0,2600.6,6.25403]
[1724165172525,6.26912,2601.4,2600.6,6.25403]
[1724165172680,3.84447,2601.2,2600.3,3.84569]
[1724165173021,3.84447,2601.2,2600.2,2.4089]
[1724165173022,3.0,2601.3,2600.4,4.470989]
[1724165173237,3.84438,2601.2,2600.4,0.625459]
[1724165173376,5.319,2601.0,2600.4,3.84546]
[1724165173582,5.319,2601.0,2600.3,3.84569]
[1724165173990,9.16371,2601.0,2600.3,3.84569]
[1724165174195,9.16371,2601.0,2600.1,3.84592]
[1724165174196,3.84521,2600.7,2599.9,4.08614]
[1724165174525,9.16372,2601.0,2600.1,3.84596]
[1724165174729,9.16372,2601.0,2600.3,3.8457]
[1724165174910,2.2701,2600.9,2599.9,0.23993]